[Event "European Women-ch 2023"]
[Site "Petrovac"]
[Date "2023.03.25"]
[Round "7.20"]
[White "Heinemann, Josefine"]
[Black "Pogorelskikh, Sofia"]
[Result "1-0"]
[Annotator "TA"]
[ECO "B22"]
[WhiteElo "2343"]
[BlackElo "2102"]
[PlyCount "105"]
[EventDate "2023.03.15"]
[EventType "swiss"]
[EventCountry "MNE"]
[SourceTitle "playchess.com"]
[Source "ChessBase"]
[SourceQuality "1"]
[TimeControl "40/5400+30:1800+30"]

{[%evp 17,105,25,29,39,87,80,97,106,109,104,154,121,187,185,258,237,286,239,234,199,220,221,229,204,192,191,187,218,217,200,191,185,167,86,102,101,154,38,103,86,93,71,139,141,230,222,256,247,291,285,272,213,376,376,762,764,709,485,852,846,908,861,791,550,830,818,812,782,1007,683,1388,1258,2152,1856,1884,1705,2850,2556,2191,1247,5243,6657,29984,29985,29987,29988,29990,29991,29991,29992]} 1. e4 {[%emt 0:00:03][%cal Be2e4,Be4e5][%mdl 32]} c5 {[%emt 0:00:08]} 2. c3 {[%emt 0:00:14]} Nf6 {[%emt 0:00:54]} 3. e5 {[%emt 0:00:08]} Nd5 {[%emt 0:00:21]} 4. Nf3 {[%emt 0:00:15]} Nc6 {[%emt 0:01:20]} 5. Bc4 {[%emt 0:00:37]} Nb6 {[%emt 0:01:10]} 6. Bb3 {[%emt 0:00:06]} d5 {[%emt 0:07:21]} 7. exd6 {[%emt 0:00:22]} Qxd6 {[%emt 0:02:43]} 8. O-O $1 {[%emt 0:00:12] The main line 8.0-0 scores better than 8.Na3.} g6 {[%emt 0:06:23]} 9. d4 {[%emt 0:02:34]} cxd4 {[%emt 0:01:14]} 10. Ng5 {[%emt 0:00:33] B22: Sicilian: 2 c3.} Nd8 {[%emt 0:08:54]} (10... e6 $14) 11. cxd4 $16 {[%emt 0:09:15]} Bg7 {[%emt 0:02:55]} 12. d5 {[%emt 0:06:53] White is better.} Bf5 {[%emt 0:12:53]} 13. Nc3 {[%emt 0:02:30] [#]} Qd7 $146 {[%emt 0:09:41]} (13... O-O $142) ({Predecessor:} 13... O-O 14. Be3 Qf6 15. Nf3 Bg4 16. Bd4 Bxf3 17. Bxf6 Bxd1 18. Bxg7 Kxg7 19. Raxd1 a6 {½-½ Jonsson,M (2410)-Oksanen,Y (2390) Baltic Sea tt7 B06 corr 1997}) 14. a4 {[%emt 0:05:00] And now a5 would win.} a5 {[%emt 0:02:28]} (14... O-O $16) 15. h3 {[%emt 0:05:34]} h6 {[%emt 0:10:10]} (15... O-O {was necessary.} 16. Be3 h6 17. Bxb6 Qd6) 16. Nf3 $1 $18 {[%emt 0:00:20]} g5 {[%emt 0:03:01]} 17. Re1 {[%emt 0:02:45]} Nc8 {[%emt 0:00:38]} 18. Ne5 {[%emt 0:03:00]} Bxe5 {[%emt 0:02:06]} 19. Rxe5 {[%emt 0:02:01]} Nd6 {[%emt 0:00:41]} 20. Qe2 {[%emt 0:07:34]} f6 {[%emt 0:00:55]} 21. Re3 {[%emt 0:00:56]} Kf8 {[%emt 0:00:57]} 22. Bd2 {[%emt 0:00:37]} N8f7 {[%emt 0:01:25]} 23. Nb5 {[%emt 0:02:56]} Nxb5 {[%emt 0:02:58]} 24. axb5 {[%emt 0:01:05]} (24. Qxb5 $6 Qxb5 25. axb5 Nd6 $16) 24... Nd6 {[%emt 0:00:43]} 25. Ba4 {[%emt 0:05:52]} (25. Rxa5 Rxa5 26. Bxa5 Qxb5 $16) (25. Bxa5 b6 26. g4 Qxb5 27. Qxb5 Nxb5 28. gxf5 Rxa5 29. Rxa5 bxa5 $11) (25. Bb4 $18) 25... Rh7 {[%emt 0:02:30]} 26. Bc3 {[%emt 0:03:17]} Rc8 {[%emt 0:02:45]} (26... Qd8 $142) 27. Qh5 {[%emt 0:03:40]} (27. Bxa5 $16 {Hoping for Bb4.} Nc4 28. b6) 27... Qe8 {[%emt 0:05:07]} (27... Nxb5 $2 28. d6 e5 29. g4 $18) (27... b6 $1 $14) 28. Qf3 {[%emt 0:00:43]} (28. Qxe8+ {simplifies} Rxe8 29. b6 Ra8 30. Bb3) 28... Qg6 {[%emt 0:01:04]} 29. Bb3 {[%emt 0:06:18]} (29. Rae1 {with more complications.} g4 30. hxg4 Bxg4 31. Qg3) 29... h5 {[%emt 0:02:52] [#]} (29... g4 $142 30. hxg4 Bxg4) 30. Qe2 $1 $16 {[%emt 0:04:43]} (30. Rxa5 $6 g4 31. Qf4 gxh3 $11) 30... h4 {[%emt 0:01:54] [#]} (30... a4 $16) 31. Re1 $1 $18 {[%emt 0:01:52][%cal Re3e7]} ({And not} 31. Bxa5 g4 32. Kh2 (32. hxg4 Bxg4 33. f3 Bh3 $11) 32... gxh3 $11) 31... Re8 {[%emt 0:03:18]} 32. f3 {[%emt 0:00:52]} ({Don't do} 32. Bxa5 $6 g4 $16) 32... Rg7 {[%emt 0:00:46]} 33. Bxa5 {[%emt 0:00:52]} Bd7 {[%emt 0:00:22]} 34. b6 {[%emt 0:04:11]} Bb5 $2 {[%emt 0:01:40]} (34... Qf5 {was called for.} 35. Bb4 Qf4) 35. Qd2 {[%emt 0:00:09]} Rc8 $2 {[%emt 0:00:47]} (35... Rd8 36. Bb4 Qf5) 36. Bb4 {[%emt 0:00:38][%cal Oe3e7] Threatens to win with Rxe7!} Rd8 {[%emt 0:02:04]} 37. Rc3 {[%emt 0:02:30]} Qe8 {[%emt 0:00:19]} (37... Bd7 $142 38. Rc7 f5) 38. Rc7 {[%emt 0:00:20]} Rd7 {[%emt 0:01:01]} 39. Bxd6 {[%emt 0:02:50][%mdl 64] Remove Defender} Rxd6 {[%emt 0:00:10]} 40. Rxb7 {[%emt 0:00:00]} e5 {[%emt 0:00:00]} 41. Rxg7 {[%emt 0:01:28]} Kxg7 {[%emt 0:01:21]} 42. Qa5 {[%emt 0:00:09]} Bd3 {[%emt 0:05:18]} 43. Qc5 {[%emt 0:03:31]} Rd8 {[%emt 0:05:42]} 44. b7 {[%emt 0:01:33] Prevents Rc8} Rb8 {[%emt 0:02:28]} 45. Qc7+ {[%emt 0:00:51]} Kh6 {[%emt 0:00:21]} 46. d6 {[%emt 0:00:10]} Bf5 {[%emt 0:04:32]} 47. Bf7 {[%emt 0:02:42]} Qf8 {[%emt 0:02:36]} 48. Ra1 {[%emt 0:00:36][%cal Be1a1,Ba1a8,Ba8b8][%mdl 32] Black must now prevent Bd5.} e4 {[%emt 0:01:36]} 49. Bd5 {[%emt 0:02:05] Ra8 would kill now.} exf3 {[%emt 0:00:36]} 50. Ra8 {[%emt 0:01:14] White mates.} Qe8 {[%emt 0:02:28]} 51. Qe7 {[%emt 0:00:06] Active counter play!} (51. Rxb8 $2 {gets mated.} Qe1+ 52. Kh2 Qg3+ 53. Kh1 Qxg2#) 51... Qb5 {[%emt 0:00:44]} 52. Qxf6+ {[%emt 0:00:27]} Bg6 {[%emt 0:00:10]} 53. Rxb8 {[%emt 0:00:54] Artfully played by Heinemann.   Weighted Error Value: White=0.46/Black=0.38} 1-0

[Event "European Women-ch 2023"]
[Site "Petrovac"]
[Date "2023.03.25"]
[Round "7.20"]
[White "Gamal, Alaa"]
[Black "Manova, Ivana"]
[Result "0-1"]
[Annotator "TA"]
[ECO "E14"]
[WhiteElo "1748"]
[BlackElo "1923"]
[PlyCount "84"]
[EventDate "2023.03.15"]
[EventType "swiss"]
[EventCountry "MNE"]
[SourceTitle "playchess.com"]
[Source "ChessBase"]
[SourceQuality "1"]
[TimeControl "40/5400+30:1800+30"]

{[%evp 16,84,12,12,8,4,42,26,20,16,17,13,77,39,35,18,11,22,37,36,37,24,69,72,69,68,114,77,80,62,87,85,115,125,113,108,156,84,159,80,237,0,0,-937,-933,-1413,-872,-928,-906,-970,-980,-916,-801,-1312,-1261,-1403,-1301,-1795,-1766,-29989,-29990,-29993,-29987,-29987,-29988,-29988,-29989,-29989,-29990,-29992,-29992]} 1. d4 {[%emt 0:00:02]} Nf6 {[%emt 0:00:15]} 2. Nf3 {[%emt 0:00:10]} e6 {[%emt 0:00:44]} 3. e3 {[%emt 0:00:08]} b6 {[%emt 0:02:05]} 4. Bd3 {[%emt 0:00:17]} Bb7 {[%emt 0:00:10]} 5. O-O {[%emt 0:00:09]} Be7 {[%emt 0:00:27]} 6. c4 {[%emt 0:00:06]} O-O {[%emt 0:02:06]} 7. Nc3 {[%emt 0:00:05]} d5 {[%emt 0:01:53]} 8. cxd5 {[%emt 0:00:06]} exd5 {[%emt 0:00:45]} 9. b3 {[%emt 0:00:12]} Nbd7 {[%emt 0:09:37] E14: Queen's Indian: Classical Variation (4 e3).} 10. Bb2 {[%emt 0:05:09]} Rc8 {[%emt 0:02:10]} 11. Qe2 {[%emt 0:06:24]} Ne4 {[%emt 0:08:31] White has an edge.} 12. Rac1 {[%emt 0:02:06]} Nxc3 {[%emt 0:08:21]} 13. Rxc3 {[%emt 0:00:38] [#]} f5 $146 {[%emt 0:05:31]} (13... Bd6 $11 {keeps the balance.}) ({Predecessor:} 13... c5 14. Rd1 Bf6 15. Ba6 Bxa6 16. Qxa6 Rc7 17. Rc2 Qc8 18. Qxc8 Rfxc8 19. dxc5 Bxb2 20. Rxb2 Rxc5 {½-½ Uimonen,M (2073)-Puuska,H (1990) FIN-chT 1920 2019 (1.7)}) 14. Qc2 {[%emt 0:01:33]} g6 {[%emt 0:04:30]} 15. Rc1 {[%emt 0:04:21][%cal Rc3c7]} c6 {[%emt 0:01:45]} 16. Qe2 {[%emt 0:00:11]} Bb4 {[%emt 0:10:12]} 17. R3c2 {[%emt 0:00:13]} Qe7 {[%emt 0:00:18]} 18. Ba6 {[%emt 0:01:05]} Nb8 {[%emt 0:00:25]} 19. Bxb7 {[%emt 0:15:47]} Qxb7 {[%emt 0:00:02]} 20. Ne5 {[%emt 0:00:09]} Rfe8 {[%emt 0:02:59]} (20... Bd6 $14) 21. h4 {[%emt 0:03:22]} Bd6 {[%emt 0:01:29]} 22. h5 {[%emt 0:00:33]} Bxe5 {[%emt 0:02:14]} 23. dxe5 {[%emt 0:00:09]} Re6 {[%emt 0:00:26]} 24. hxg6 {[%emt 0:02:11]} hxg6 {[%emt 0:06:51]} 25. b4 {[%emt 0:01:06]} Qh7 {[%emt 0:06:13]} (25... Nd7 $142) 26. Qf3 {[%emt 0:07:35]} (26. b5 $142) 26... g5 {[%emt 0:05:05]} (26... Qh4 $142) 27. g4 {[%emt 0:08:22]} ({Better is} 27. b5) 27... Rf8 $2 {[%emt 0:05:37]} (27... fxg4 $16 28. Qxg4 Kf7) 28. Kg2 $2 {[%emt 0:09:24]} ({White must play} 28. b5 $1 $18 {[%cal Rb5c6]} fxg4 29. Qxg4) 28... f4 $11 {[%emt 0:04:18] [#] ...Rh6 would be deadly.} 29. Rh1 {[%emt 0:00:57][%mdl 8192]} Qxc2 $19 {[%emt 0:00:21]} 30. Qh3 {[%emt 0:01:03]} Kg7 {[%emt 0:01:50] Strongly threatening ...fxe3.} (30... Qxb2 $2 31. Qh7#) 31. exf4 {[%emt 0:01:47]} gxf4 {[%emt 0:00:18][%cal Bg5f4,Bf4f3][%mdl 32] Threatens to win with ...f3+.} (31... Qxb2 $2 32. Qh7#) ({Weaker is} 31... Rxf4 32. Qh8+ Kf7 33. Rh7+ $18 (33. Qxb8 $2 {gets mated.} Qxf2+ 34. Kh3 Rh6#) (33. Qxb8 $2 Qxf2+ 34. Kh3 Rh6#)) 32. g5 {[%emt 0:02:56]} f3+ {[%emt 0:03:11]} 33. Kg3 {[%emt 0:01:04]} Qf5 {[%emt 0:01:18][%csl Gf8][%cal Rf5f4] [#]} 34. Qh4 {[%emt 0:01:21] Repels Qf4+} c5 {[%emt 0:00:33]} 35. bxc5 {[%emt 0:00:19]} bxc5 {[%emt 0:00:05]} 36. Bc1 {[%emt 0:01:19]} Nc6 {[%emt 0:00:52][%cal Oc6d4] ( -> ...Nd4!)} 37. Bf4 {[%emt 0:00:20]} Nd4 {[%emt 0:00:33] Black mates.} 38. Rb1 {[%emt 0:01:12]} Qxf4+ {[%emt 0:00:53]} 39. Qxf4 {[%emt 0:00:10]} Ne2+ {[%emt 0:00:06]} 40. Kxf3 {[%emt 0:00:00]} Nxf4 {[%emt 0:00:00]} 41. Rb7+ {[%emt 0:00:27]} Kg6 {[%emt 0:00:30]} 42. Kg4 {[%emt 0:00:26]} Nd3 {[%emt 0:03:50] An exciting game.   Weighted Error Value: White=1.49/Black=0.60} 0-1

[Event "European Women-ch 2023"]
[Site "Petrovac"]
[Date "2023.03.25"]
[Round "7.21"]
[White "Hajiyeva, Laman"]
[Black "Antolak, Julia"]
[Result "1/2-1/2"]
[Annotator "TA"]
[ECO "C54"]
[WhiteElo "2118"]
[BlackElo "2276"]
[PlyCount "56"]
[EventDate "2023.03.15"]
[EventType "swiss"]
[EventCountry "MNE"]
[SourceTitle "playchess.com"]
[Source "ChessBase"]
[SourceQuality "1"]
[TimeControl "40/5400+30:1800+30"]

{[%evp 17,56,0,9,0,26,0,20,21,18,19,12,13,16,14,20,33,20,21,11,11,14,12,22,27,89,0,0,0,0,0,0,-16,-15,-21,0,0,0,0,0,0,0]} 1. e4 {[%emt 0:01:02]} e5 {[%emt 0:00:07]} 2. Nf3 {[%emt 0:00:06]} Nc6 {[%emt 0:00:05]} 3. Bc4 {[%emt 0:00:10]} Bc5 {[%emt 0:00:19]} 4. c3 {[%emt 0:00:08]} Nf6 {[%emt 0:00:27]} 5. d4 {[%emt 0:00:05]} exd4 {[%emt 0:00:12]} 6. e5 {[%emt 0:00:04]} d5 {[%emt 0:00:55]} 7. Bb5 {[%emt 0:00:05]} Ne4 {[%emt 0:00:06]} 8. cxd4 {[%emt 0:00:04]} Bb6 {[%emt 0:00:07]} 9. Nc3 {[%emt 0:00:03]} O-O {[%emt 0:00:53]} 10. Be3 {[%emt 0:00:02] C54: Giuoco Piano: 4 c3 Nf6, main lines with 5 d4 and 5 d3.} f5 {[%emt 0:00:43]} 11. exf6 {[%emt 0:05:23] Black must now prevent Nxe4.} Nxf6 {[%emt 0:00:39]} 12. Bxc6 {[%emt 0:05:19]} bxc6 {[%emt 0:00:06]} 13. Ne5 {[%emt 0:00:13] Wards off Ng4} Qd6 {[%emt 0:00:42] ...c5 is the strong threat.} 14. O-O $1 {[%emt 0:01:15]} c5 {[%emt 0:03:30]} 15. dxc5 {[%emt 0:11:32]} Bxc5 {[%emt 0:01:17]} ({Don't play} 15... Qxe5 16. cxb6 (16. Bd4 Qf4 $14) 16... cxb6 17. Bd4 $14) 16. Bxc5 {[%emt 0:01:11]} Qxc5 {[%emt 0:00:12]} 17. Rc1 {[%emt 0:02:14][%cal Oc3e4]} Qd6 $1 {[%emt 0:01:05]} 18. Re1 {[%emt 0:05:51] White wants to play Nb5.} Ba6 {[%emt 0:01:52] [#] Wards off Nb5} 19. b4 $1 {[%emt 0:04:41]} Rae8 {[%emt 0:15:08]} 20. Qd4 {[%emt 0:04:28]} Ne4 {[%emt 0:07:56] [#]} 21. Qxd5+ $146 {[%emt 0:09:35]} (21. f4 $1 $16) ({Predecessor:} 21. f4 Nxc3 22. Rxc3 Bc4 23. Rce3 Rb8 24. a3 Bb5 25. Qxa7 d4 26. Re4 Rbd8 27. a4 {1-0 Kollars,D (2498)-Buckels,V (2318) Hoogeveen op 21st 2017 (5)}) 21... Qxd5 $11 {[%emt 0:04:33][%mdl 64] Remove Defender. The position is equal.} 22. Nxd5 {[%emt 0:01:43]} Rxe5 {[%emt 0:04:41]} 23. Nxc7 {[%emt 0:00:35]} Bd3 {[%emt 0:13:39]} 24. f3 {[%emt 0:03:26] [#]} (24. Re3 $5) 24... Rxf3 $1 {[%emt 0:04:50] Strongly threatening ...Rf7.} 25. Rxe4 {[%emt 0:01:12]} (25. gxf3 $2 {leads to mate.} Rg5+ 26. Kh1 Nf2#) 25... Bxe4 {[%emt 0:04:09]} 26. gxf3 {[%emt 0:00:07]} Bxf3 {[%emt 0:00:09]} 27. Kf2 {[%emt 0:02:09]} Bb7 {[%emt 0:02:36]} 28. Rc5 {[%emt 0:07:32]} Re4 {[%emt 0:05:35] Weighted Error Value: White=0.10 (very precise) /Black=0.09 (flawless)} 1/2-1/2

[Event "European Women-ch 2023"]
[Site "Petrovac"]
[Date "2023.03.25"]
[Round "7.21"]
[White "Goriachkina, Oksana"]
[Black "Silva, Mariana Sofia T."]
[Result "0-1"]
[Annotator "TA"]
[ECO "D37"]
[WhiteElo "1759"]
[BlackElo "1920"]
[PlyCount "108"]
[EventDate "2023.03.15"]
[EventType "swiss"]
[EventCountry "MNE"]
[SourceTitle "playchess.com"]
[Source "ChessBase"]
[SourceQuality "1"]
[TimeControl "40/5400+30:1800+30"]

{[%evp 9,108,10,16,16,16,0,8,0,0,-50,-37,-39,-10,-33,-10,-85,-15,-22,-22,-59,-8,-12,0,-10,0,-16,-16,-20,64,51,43,41,111,113,212,214,199,227,172,105,117,39,37,29,29,31,32,32,36,39,55,56,50,48,74,72,79,22,29,32,23,28,35,8,39,8,8,10,39,39,23,0,0,0,0,0,0,0,0,-8,-8,-8,0,-302,-302,-289,-278,-302,-275,-285,-266,-29977,-29978,-29978,-29978,-29977,-29978,-29978,-29979,-29982,-29983]} 1. d4 {[%emt 0:00:01]} Nf6 {[%emt 0:00:14]} 2. c4 {[%emt 0:00:05][%cal Bc2c4,Bc4c5,Bc5b6][%mdl 32]} e6 {[%emt 0:00:05]} 3. Nf3 {[%emt 0:00:02]} d5 {[%emt 0:00:10]} 4. Nc3 {[%emt 0:00:04]} a6 {[%emt 0:00:09]} 5. c5 {[%emt 0:09:47]} b6 {[%emt 0:00:21]} 6. cxb6 {[%emt 0:00:35] D37: Queen's Gambit Declined: 5 Bf4.} c5 {[%emt 0:00:12]} (6... Nbd7 7. bxc7 Qxc7 8. Bd2 $14) 7. Qb3 {[%emt 0:08:54] Threatens to win with b7.} Bd7 {[%emt 0:01:03]} 8. dxc5 {[%emt 0:06:56] The position is equal.} (8. Bg5 {feels hotter.} Nc6 9. b7 Rb8 10. dxc5 Qc7 11. Bxf6 gxf6 12. e3) 8... Bxc5 {[%emt 0:00:26]} 9. Na4 {[%emt 0:00:38]} ({White should try} 9. Bf4 $11 Bxb6 10. e3) 9... Bxa4 $15 {[%emt 0:27:35]} 10. Qxa4+ {[%emt 0:00:01] [#]} Qd7 $146 {[%emt 0:03:20]} ({Predecessor:} 10... Nbd7 11. b7 Ra7 12. b4 Bb6 13. e3 a5 14. Bb2 Rxb7 15. Bb5 axb4 16. Bxf6 gxf6 {½-½ Lacrosse,M (2023)-Baarslag,E (2172) Vlissingen HZ op 24th 2022 (6)}) 11. Qb3 {[%emt 0:11:06]} (11. b7 {seems wilder.} Ra7 12. Qxd7+ Nbxd7 13. b8=Q+) 11... Qd6 {[%emt 0:03:01]} 12. a4 {[%emt 0:09:20]} (12. e3 $11 {keeps the balance.}) 12... Qxb6 {[%emt 0:04:34] Black is more active.} ({Better is} 12... Bxb6 $17 13. e3 Ne4) 13. Qxb6 $11 {[%emt 0:00:05]} Bxb6 {[%emt 0:00:05]} 14. b4 {[%emt 0:11:20]} O-O {[%emt 0:05:03]} (14... Nc6 $15 15. Ba3 a5) 15. e3 {[%emt 0:06:04]} Nbd7 {[%emt 0:05:09]} 16. Ba3 {[%emt 0:01:59]} Rfc8 {[%emt 0:02:27]} 17. Be2 {[%emt 0:01:55]} Ne4 {[%emt 0:01:39]} 18. O-O {[%emt 0:07:22]} Ndf6 {[%emt 0:09:27]} ({Black should play} 18... Nc3 $11 19. Bd3 Nxa4) 19. Rfc1 {[%emt 0:02:34]} (19. a5 $5 {[%cal Ra5b6]} Bd8 20. Rfc1 $14) 19... Nc3 {[%emt 0:01:18]} 20. Bf1 {[%emt 0:00:33]} Nfe4 {[%emt 0:04:21]} (20... a5 $14) 21. Bb2 $16 {[%emt 0:00:10]} a5 {[%emt 0:14:18]} (21... Bd8 $16 {keeps fighting.}) 22. b5 $18 {[%emt 0:00:52]} Rc7 {[%emt 0:02:47]} 23. Ne5 {[%emt 0:05:09]} d4 {[%emt 0:02:05]} 24. Nc6 {[%emt 0:00:38]} (24. Nc4 $18 Bc5 25. Bd3) 24... e5 $16 {[%emt 0:01:24]} 25. Bxc3 {[%emt 0:13:36]} ({But not} 25. Nxe5 $6 dxe3 26. Nc4 exf2+ 27. Kh1 Bd4 $11) (25. g3 $16) 25... Nxc3 $14 {[%emt 0:00:21]} 26. exd4 {[%emt 0:02:14]} ({Don't play} 26. Nxe5 dxe3 27. Bd3 Rd8 $15) 26... exd4 {[%emt 0:00:44]} 27. Re1 {[%emt 0:00:41]} g6 {[%emt 0:03:39]} 28. Bd3 {[%emt 0:00:29]} Kf8 {[%emt 0:01:44]} 29. Kf1 {[%emt 0:00:46]} Re8 {[%emt 0:00:40]} 30. Rxe8+ {[%emt 0:00:32]} Kxe8 {[%emt 0:00:02]} 31. Ke1 {[%emt 0:00:19]} f6 {[%emt 0:03:28]} 32. Kd2 {[%emt 0:00:27]} Kd7 {[%emt 0:01:10]} 33. Kc2 {[%emt 0:01:02]} (33. Bc2 $16) 33... Rc8 $11 {[%emt 0:00:57]} 34. Kb3 {[%emt 0:00:25]} Re8 $1 {[%emt 0:01:35] Repels Re1} 35. Kc4 {[%emt 0:00:35]} Rc8 {[%emt 0:00:21]} 36. h4 {[%emt 0:00:33]} Kd6 {[%emt 0:00:41] [#]} 37. h5 $1 {[%emt 0:00:29]} f5 {[%emt 0:00:13]} 38. Kb3 {[%emt 0:00:28] And now hxg6 would win.} Re8 {[%emt 0:00:30]} 39. hxg6 {[%emt 0:00:14]} hxg6 {[%emt 0:00:02]} 40. Rh1 {[%emt 0:00:00]} Ne4 {[%emt 0:00:00]} 41. Rh6 {[%emt 0:08:21]} Re6 {[%emt 0:04:00]} 42. f3 {[%emt 0:02:12]} Nc5+ {[%emt 0:01:42]} 43. Kc2 $1 {[%emt 0:00:06]} ({Much weaker is} 43. Kc4 Nxa4 44. Nxd4 Nb2+ 45. Kc3 Bxd4+ 46. Kxd4 Nxd3 47. Kxd3 Kc5 $17) 43... Nxa4 {[%emt 0:01:43]} 44. g4 {[%emt 0:00:09]} fxg4 {[%emt 0:06:16]} 45. fxg4 {[%emt 0:00:02]} Nc3 {[%emt 0:01:23]} 46. Bc4 $2 {[%emt 0:06:32][%mdl 8192] [#]} (46. g5 $11 {and White has nothing to worry.}) 46... Nd5 $1 $19 {[%emt 0:05:13]} 47. Kd2 {[%emt 0:10:13]} Kc5 {[%emt 0:02:03]} 48. Bb3 {[%emt 0:00:15]} Bc7 {[%emt 0:03:54] ...Bf4+ would be deadly.} 49. Bxd5 {[%emt 0:03:36]} Kxd5 {[%emt 0:00:06]} 50. Rxg6 $2 {[%emt 0:02:17]} (50. Rh8 $19) 50... Rxg6 {[%emt 0:06:17] Black mates.} 51. Ne7+ {[%emt 0:00:01]} Kc5 {[%emt 0:00:49]} 52. Nxg6 {[%emt 0:00:03]} a4 {[%emt 0:01:51][%cal Ba5a4,Ba4a3][%mdl 32]} 53. Nf8 {[%emt 0:03:37]} Kd6 {[%emt 0:02:30]} 54. Kc2 {[%emt 0:00:35]} a3 {[%emt 0:00:28] Black used his chance.   Weighted Error Value: White=0.34/Black=0.14 (very precise)} 0-1

[Event "European Women-ch 2023"]
[Site "Petrovac"]
[Date "2023.03.25"]
[Round "7.22"]
[White "Abdinova, Narmin"]
[Black "Olde, Margareth"]
[Result "0-1"]
[Annotator "TA"]
[ECO "C54"]
[WhiteElo "2090"]
[BlackElo "2234"]
[PlyCount "94"]
[EventDate "2023.03.15"]
[EventType "swiss"]
[EventCountry "MNE"]
[SourceTitle "playchess.com"]
[Source "ChessBase"]
[SourceQuality "1"]
[TimeControl "40/5400+30:1800+30"]

{[%evp 19,94,0,8,0,0,0,0,0,0,0,0,0,0,0,0,-21,-33,-38,-20,-23,-28,-22,-20,-100,-60,-58,-61,-68,-29,-81,-75,-130,-138,-136,-70,-70,-70,-70,-70,-70,-70,-70,-70,-79,-86,-70,-70,-70,-70,-70,-70,-70,-35,-64,-22,-22,-20,-51,-18,-22,-20,-22,-22,-41,-17,-224,-197,-974,-939,-29975,-29976,-29982,-29984,-29983,-29984,-29984,-29985]} 1. e4 {[%emt 0:03:17]} e5 {[%emt 0:00:08]} 2. Nf3 {[%emt 0:00:19]} Nc6 {[%emt 0:00:08]} 3. d4 {[%emt 0:00:07]} exd4 {[%emt 0:00:07]} 4. Bc4 {[%emt 0:00:06]} Bc5 {[%emt 0:03:20]} 5. c3 {[%emt 0:00:47]} Nf6 {[%emt 0:00:15]} 6. cxd4 {[%emt 0:00:09]} Bb4+ {[%emt 0:00:19]} 7. Bd2 {[%emt 0:00:09]} Nxe4 {[%emt 0:01:29]} 8. Bxb4 {[%emt 0:00:32]} Nxb4 {[%emt 0:00:07]} 9. Bxf7+ {[%emt 0:00:07]} Kxf7 {[%emt 0:00:13]} 10. Qb3+ {[%emt 0:00:08]} d5 {[%emt 0:00:37] 10...d5 has lost popularity.} 11. Ne5+ {[%emt 0:01:17] C54: Giuoco Piano: 4 c3 Nf6, main lines with 5 d4 and 5 d3.} (11. Qxb4 {simplifies} Rf8 12. Nc3 Kg8 13. Nxe4 a5 14. Qc3) 11... Ke6 {[%emt 0:00:49] Strongly threatening ...Nc6.} 12. Qxb4 {[%emt 0:00:38]} Qf8 {[%emt 0:00:21]} 13. Qxf8 {[%emt 0:00:27] The position is equal.} Rxf8 {[%emt 0:00:05]} 14. Nc3 {[%emt 0:03:50] Excellent horsemanship.} c6 {[%emt 0:06:58] Prevents Nb5} 15. O-O {[%emt 0:06:56]} Kd6 {[%emt 0:05:00]} 16. Rfe1 {[%emt 0:29:55]} Ng5 {[%emt 0:03:42] [#]} 17. b4 $146 {[%emt 0:06:07]} ({Predecessor:} 17. Rac1 Ne6 18. Ne2 c5 19. Nf3 c4 20. Nc3 Bd7 21. Re3 Rae8 22. Rd1 b5 23. Ne5 {½-½ Popov,V (2079)-Dahm,W (2128) W-ch WS/M/604 email 2016}) 17... Ne6 {[%emt 0:06:54]} 18. Rad1 {[%emt 0:06:42]} Rf5 {[%emt 0:08:05]} 19. Nf3 {[%emt 0:20:20]} Bd7 {[%emt 0:03:21]} 20. Ne5 {[%emt 0:02:46]} Be8 {[%emt 0:02:27]} 21. g4 {[%emt 0:07:22]} (21. f3 $11 {remains equal.}) 21... Rf6 {[%emt 0:06:06]} 22. Re3 {[%emt 0:00:04]} a5 {[%emt 0:06:01]} 23. bxa5 {[%emt 0:00:05]} Kc7 {[%emt 0:03:53]} 24. Nd3 {[%emt 0:02:52] [#]} (24. h4 $11) 24... Bd7 $1 $17 {[%emt 0:07:54]} 25. Na4 {[%emt 0:03:18]} ({White should try} 25. Ne5) 25... Rxa5 {[%emt 0:07:39]} 26. Nac5 {[%emt 0:00:04][%cal Og4g5]} Nxc5 {[%emt 0:04:07]} ({Of course not} 26... Nxd4 $6 27. Nxd7 Kxd7 28. Ne5+ Kd6 29. Rxd4 $11) (26... Rxa2 $17 27. Rb1 Bc8) 27. Nxc5 $15 {[%emt 0:01:33]} b6 {[%emt 0:00:49]} ({Much weaker is} 27... Rxa2 28. Re7 Rfxf2 29. Rxd7+ Kc8 30. Rxg7 (30. Rxb7 Rg2+ 31. Kh1 Rxh2+ 32. Kg1 Rhg2+ 33. Kh1 Rh2+ 34. Kg1 Rhg2+ 35. Kh1 Rh2+ $11) 30... Rg2+ 31. Kh1 Rxh2+ 32. Kg1 $11) 28. Nxd7 {[%emt 0:01:11]} Kxd7 {[%emt 0:00:05][%mdl 4096] Endgame KRR-KRR} 29. Rd2 {[%emt 0:01:40]} Ra4 {[%emt 0:06:11] ...Rf4 is the strong threat.} 30. h3 {[%emt 0:00:18]} Rf4 {[%emt 0:00:49]} 31. Red3 {[%emt 0:00:14]} Kd6 {[%emt 0:01:10]} 32. Kg2 {[%emt 0:00:06]} Rf8 {[%emt 0:00:35] Black is more active.} 33. Rb3 {[%emt 0:00:44]} b5 {[%emt 0:00:31]} 34. a3 {[%emt 0:01:38]} Rfa8 {[%emt 0:05:43]} 35. Rdd3 {[%emt 0:00:15]} R8a5 {[%emt 0:00:26]} 36. Kf3 {[%emt 0:01:47]} c5 {[%emt 0:00:49]} 37. dxc5+ {[%emt 0:00:02]} Kxc5 {[%emt 0:00:06]} 38. Ke3 {[%emt 0:00:54]} Ra7 {[%emt 0:01:52]} 39. Kd2 {[%emt 0:00:20]} Rf7 {[%emt 0:01:35]} 40. f3 {[%emt 0:00:00]} d4 {[%emt 0:00:00]} 41. Rb1 {[%emt 0:04:21]} Rfa7 {[%emt 0:08:10]} 42. Rbb3 {[%emt 0:05:59] This costs White the game.} (42. h4 $11 {and White is okay.}) 42... Kc4 {[%emt 0:05:42] ...b4 would be deadly.} 43. Kc2 $2 {[%emt 0:02:27]} (43. Rb1) 43... b4 $19 {[%emt 0:06:35][%cal Ra4a3]} 44. Rxb4+ {[%emt 0:14:51]} Rxb4 {[%emt 0:00:08] Black mates.} 45. axb4 {[%emt 0:00:04]} Ra2+ {[%emt 0:00:18]} 46. Kb1 {[%emt 0:00:06]} Kxd3 {[%emt 0:00:30]} 47. Kxa2 {[%emt 0:00:04] [#]} Kc2 $1 {[%emt 0:00:09] Weighted Error Value: White=0.56/Black=0.09 (flawless)} 0-1